Cogmind - Beta 16 @@@ ROGUE MODE // 2025.11.27 @ 16:44:18 Player: TormentedShadow Result: Destroyed by A5-ANP(R) with Subdweller Machine Gun Performance ------------- Evolutions (0) 0 Regions Visited (2) 400 Robots Destroyed (20) 100 Value Destroyed (419) 419 Prototype IDs (0) 0 Alien Tech Used (0) 0 Bonus (0) 0 TOTAL SCORE: 919 Bonus ------- None Cogmind --------- Core Integrity 0/250 Matter 71/300 Energy 125/125 System Corruption 0% Temperature Cool (0) Movement Core (200) Ox3 Location -10/Subcaves Parts ------- > --- POWER (1) -------- Light Ion Engine > --- PROPULSION (2) --- (None) > --- UTILITY (2) ------ Small Storage Unit Improved Terrain Scanner > --- WEAPON (2) ------- Battle Cannon > --- INVENTORY (8) ---- Disposable Heat Sink Medium Matter Pod (100) Subdweller Optics Improved Terrain Scanner Makeshift Kinetic Plating Subdweller Laser Subdweller Laser Peak State ------------ > --- POWER ------------ Light Ion Engine > --- PROPULSION ------- Aluminum Leg Makeshift Flight Unit > --- UTILITY ---------- Small Storage Unit Improved Terrain Scanner > --- WEAPON ----------- Light Assault Rifle Battle Cannon > --- INVENTORY -------- Light Ion Engine Disposable Heat Sink Medium Matter Pod Subdweller Optics Improved Terrain Scanner Makeshift Kinetic Plating Subdweller Laser Subdweller Laser [Rating: 14] Favorites ----------- Power Light Ion Engine Engine Light Ion Engine Propulsion Light Treads Treads Light Treads Leg Aluminum Leg Flight Unit Makeshift Flight Unit Utility Small Storage Unit Device Improved Terrain Scanner Storage Small Storage Unit Weapon Light Assault Rifle Ballistic Gun Light Assault Rifle Ballistic Cannon Battle Cannon Launcher Subdweller Shrapnel Launcher Build | -11 -10 -10 ------- Run | Yrd Mat Sub Slots Evolved . | . . . Power . | . . . Propulsion . | . . . Utility . | . . . Weapon . | . . . Parts Attached 14 | 7 . 7 Power 2 | 1 . 1 Engine 2 | 1 . 1 Core . | . . . Reactor . | . . . Propulsion 5 | 2 . 3 Treads 2 | 2 . . Leg 2 | . . 2 Wheel . | . . . Hover . | . . . Flight 1 | . . 1 Utility 2 | 2 . . Device 1 | 1 . . Storage 1 | 1 . . Processor . | . . . Hackware . | . . . Protection . | . . . Artifact . | . . . Weapon 5 | 2 . 3 Energy Gun . | . . . Energy Cannon . | . . . Ballistic Gun 3 | 2 . 1 Ballistic Cannon 1 | . . 1 Launcher 1 | . . 1 Special Weapon . | . . . Impact Weapon . | . . . Slashing Weapon . | . . . Piercing Weapon . | . . . Special Melee Weapon . | . . . Unidentified Prototypes . | . . . Parts Lost 8 | . . 8 Power 1 | . . 1 Propulsion 5 | . . 5 Utility . | . . . Weapon 2 | . . 2 Highest Loss Streak 4 | . . 4 To Critical Strikes . | . . . Average Backups 6 | 4 8 7 Power . | . 1 . Propulsion 1 | 1 2 . Utility 3 | 1 4 4 Weapon 1 | . 1 1 Tool/Special . | . . . Unused Backups 9 | . . 9 Power . | . . . Propulsion . | . . . Utility 7 | . . 7 Weapon 2 | . . 2 Tool/Special . | . . . Average Slot Usage (%) 98 | . 100 98 Engine 13 | . 14 13 Treads 12 | . 28 10 Leg 14 | . . 16 Device 14 | . 14 14 Storage 14 | . 14 14 Ballistic Gun 23 | . 28 22 Launcher 3 | . . 3 Peak Build Rating 14 | 10 10 14 Average Rating 9 | 7 10 10 On Entrance 6 | . 10 10 Avg Prop Armor Cover (%) 3 | . . 3 Naked Turns . | . . . Heaviest Build 18 | 11 11 18 Greatest Support 40 | 40 40 40 Greatest Overweight (x) 3 | 3 . 3 Average Overweight (x) . | . . . Largest Inventory Capacity 8 | 8 8 8 Average Capacity 7 | 7 8 8 Most Carried 8 | 8 8 8 Average Carried 6 | 4 8 7 Final Capacity 8 | 8 8 8 Final Carried 8 | 8 8 7 Class Distribution -------------------- 100% | Mutant Dominant Class ---------------- Mutant | -10/Materials Mutant | -10/Subcaves Resources | -11 -10 -10 ----------- Run | Yrd Mat Sub Matter Collected 624 | 424 . 200 Remotely . | . . . Salvage Created 424 | 186 . 238 Parts 36 | 22 . 14 Haulers Intercepted . | . . . Recyclers Shooed . | . . . Parts Field Recycled . | . . . Retrieved Matter . | . . . Parts Self-Destructed 6 | . . 6 Prevented . | . . . Parts Restored . | . . . Kills | -11 -10 -10 ------- Run | Yrd Mat Sub Combat Hostiles Destroyed 10 | . . 10 Guns 3 | . . 3 AOE 7 | . . 7 Classes Destroyed 7 | 3 . 4 Worker 3 | 3 . . Tunneler 5 | 5 . . Recycler 1 | 1 . . Turret 1 | . . 1 Swarmer 2 | . . 2 Sentry 1 | . . 1 Subdweller 7 | . . 7 Best Kill Streak 5 | 2 . 5 Combat Bots Only 4 | . . 4 Max Kills in Single Turn 2 | 1 . 2 Gunslinging . | . . . Exploded 1 | . . 1 Melee . | . . . Uniques/NPCs Destroyed . | . . . Combat | -11 -10 -10 -------- Run | Yrd Mat Sub Hostile Shots Fired 77 | . . 77 Missed 21 | . . 21 Hits 56 | . . 56 Projectile 56 | . . 56 Damage Taken 1286 | . . 1286 Core 259 | . . 259 Absorbed by Shields . | . . . Core Remaining (%) 100 | 100 . . Volleys Fired 89 | 43 . 46 Largest 2 | 2 . 2 Hottest 60 | 40 . 60 Shots Fired 176 | 86 . 90 Gun 153 | 86 . 67 Cannon 10 | . . 10 Launcher 13 | . . 13 Special . | . . . Kinetic 176 | 86 . 90 Thermal . | . . . Explosive . | . . . Electromagnetic . | . . . Robot Hit Streak 9 | 9 . 8 Robot Miss Streak 4 | 4 . 4 Penetration Max . | . . . Secondary Targets . | . . . Shots Hit Robots 100 | 46 . 54 Core Hits 39 | 20 . 19 Critical Kills 1 | . . 1 Critical Parts Destroyed 1 | 1 . . Critical Strikes 2 | 1 . 1 Destroy 2 | 1 . 1 Melee Attacks . | . . . Impact . | . . . Slashing . | . . . Piercing . | . . . Sneak Attacks . | . . . Combat Hostiles . | . . . Follow-up Attacks . | . . . Damage Inflicted 1646 | 384 . 1262 Guns 697 | 384 . 313 Cannons 107 | . . 107 Explosions 842 | . . 842 Melee . | . . . Ramming . | . . . Kinetic 1646 | 384 . 1262 Thermal . | . . . Explosive . | . . . Electromagnetic . | . . . Impact . | . . . Slashing . | . . . Piercing . | . . . Highest Corruption . | . . . Average Corruption . | . . . Corruption Purged . | . . . Corruption Blocked . | . . . Overload Shots . | . . . Overflow Damage 11 | . . 11 Projectiles . | . . . Explosions 11 | . . 11 Melee . | . . . Knockbacks 3 | . . 3 Impact . | . . . Kinetic 3 | . . 3 Secondary . | . . . Self-Inflicted Damage 165 | . . 165 Shots 6 | . . 6 Rammed . | . . . Targets Rammed . | . . . Kicked . | . . . Crushed . | . . . Highest Temperature . | . . . Average Temperature . | . . . Received Heat Transfer 273 | . . 273 Siege Activations . | . . . Martial Activations . | . . . Shielding Activations . | . . . Robots Disrupted . | . . . Combat Hostiles . | . . . Robots Corrupted . | . . . Combat Hostiles . | . . . Parts Fried . | . . . Impact Corruptions . | . . . Robots Melted . | . . . Combat Hostiles . | . . . Parts Melted . | . . . Heat Transferred . | . . . Parts Sabotaged . | . . . Parts Stolen . | . . . Parts Stripped . | . . . Power Chain Reactions . | . . . Alert | -11 -10 -10 ------- Run | Yrd Mat Sub Maximum Alert Level . | . . . Low Security (%) 100 | 100 100 . Level 1 . | . . . Level 2 . | . . . Level 3 . | . . . Level 4 . | . . . Level 5 . | . . . High Security . | . . . Max Security . | . . . Peak Influence 5 | 5 . . Initial . | . . . Average . | 1 . . Influence Increases 125 | 45 . 80 Destroy 0b10 Robot/C 80 | . . 80 Destroy 0b10 Robot/NC 45 | 45 . . Influence Decreases 125 | 45 . 80 Time Decay 89 | 45 . 44 Lost Part 36 | . . 36 Squads Dispatched . | . . . Investigation . | . . . Extermination . | . . . Reinforcement . | . . . Assault . | . . . Garrison . | . . . Intercept . | . . . Searches Triggered . | . . . Construction Impeded . | . . . Haulers Reinforced . | . . . Active Scanning Responses . | . . . Cargo Convoy Interrupts . | . . . Stealth | -11 -10 -10 --------- Run | Yrd Mat Sub Distress Signals . | . . . Communications Jammed . | . . . Distress Signals . | . . . Times Spotted 13 | . . 13 Peak Tracking Total 3 | . . 3 Tactical Retreats . | . . . Traps | -11 -10 -10 ------- Run | Yrd Mat Sub Traps Triggered . | . . . Indirectly . | . . . Trap Hack Attempts . | . . . Triggered . | . . . Disarmed . | . . . Reprogrammed . | . . . Reused . | . . . Traps Extracted . | . . . Installed . | . . . Triggered . | . . . Machines | -11 -10 -10 ---------- Run | Yrd Mat Sub Machines Disabled 1 | . . 1 Max in Single Turn 1 | . . 1 Machines Repaired . | . . . Machines Dismantled . | . . . Machines Sabotaged . | . . . Overloaded Fab Kills . | . . . Hacking | -11 -10 -10 --------- Run | Yrd Mat Sub Machines Accessed 1 | . . 1 Terminals . | . . . Fabricators . | . . . Repair Stations . | . . . Recycling Units . | . . . Scanalyzers . | . . . Garrison Access . | . . . Total Hacks 4 | . . 4 Successful 4 | . . 4 Failed . | . . . Catastrophic . | . . . Database Lockouts . | . . . Manual . | . . . Terminals . | . . . Fabricators . | . . . Repair Stations . | . . . Recycling Units . | . . . Scanalyzers . | . . . Garrison Access . | . . . Terminal Hacks 4 | . . 4 Record 4 | . . 4 Fabricator Hacks . | . . . Repair Station Hacks . | . . . Recycling Unit Hacks . | . . . Scanalyzer . | . . . Garrison Access Hacks . | . . . Unauthorized Hacks . | . . . Terminals . | . . . Fabricators . | . . . Repair Stations . | . . . Recycling Units . | . . . Scanalyzers . | . . . Garrison Access . | . . . Data Cores Recovered . | . . . Used . | . . . Hacking Detections . | . . . Full Trace Events . | . . . Feedback Events . | . . . Feedback Blocked . | . . . Robot Schematics Acquired . | . . . Robots Built . | . . . Authchips . | . . . Time . | . . . Total Robot Build Rating . | . . . Part Schematics Acquired . | . . . Parts Built . | . . . Authchips . | . . . Time . | . . . Total Part Build Rating . | . . . Part Studies Acquired . | . . . Parts Repaired . | . . . Time . | . . . Parts Recycled . | . . . Recycled Matter . | . . . Retrieved Matter . | . . . Retrieved Components . | . . . Parts Scanalyzed . | . . . Part Schematics Acquired . | . . . Parts Damaged . | . . . Bothacking | -11 -10 -10 ------------ Run | Yrd Mat Sub Used RIF Installer . | . . . Robots Hacked . | . . . Non-combat . | . . . Combat . | . . . Robot Hacks Applied . | . . . Relay Couplers Released . | . . . Fabnet Peak Effective % . | . . . Robots Rewired . | . . . Allies Hacked . | . . . Hacks Repelled . | . . . Allies | -11 -10 -10 -------- Run | Yrd Mat Sub Total Allies . | . . . Largest Group . | . . . Highest-Rated Group . | . . . Highest-Rated Ally . | . . . Total Orders . | . . . Ally Attacks . | . . . Total Damage . | . . . Kills . | . . . Allies Corrupted . | . . . Allies Melted . | . . . Intel | -11 -10 -10 ------- Run | Yrd Mat Sub Active Infowar (turns) 1715 | 207 187 1321 Terrain 1715 | 207 187 1321 Robot Analysis Total . | . . . Derelict Logs Recovered 1 | . . 1 Drone Launches . | . . . Drone Recoveries . | . . . Exploration | -11 -10 -10 ------------- Run | Yrd Mat Sub Turns Passed 1950 | 442 187 1321 Spaces Moved 1096 | 199 21 876 Core 28 | 24 . 4 Treads 470 | 175 21 274 Legs 592 | . . 592 Wheels . | . . . Hover . | . . . Flight 6 | . . 6 Fastest Speed 50 | 50 160 120 Average Speed 138 | 155 160 134 Slowest Speed 200 | 200 160 200 Overloaded Moves . | . . . Propulsion Burnouts . | . . . Robots Hopped . | . . . Potential Cave-ins . | . . . Cave-ins Triggered . | . . . Exploration Rate (%) 23 | 10 6 53 Regions Visited 2 Branch Regions 1 Pre-discovered Areas 2 | . . 2 Known Exits Taken . | . . . Unknown Exits Taken 2 | 1 1 . Scrap Searched 3 | . . 3 Spaces Dug . | . . . Terrain Destroyed 142 | . . 142 Melee . | . . . Projectile . | . . . AOE 142 | . . 142 Terrain Rammed . | . . . Walls Destroyed . | . . . Machines Disabled . | . . . Actions | -11 -10 -10 --------- Run | Yrd Mat Sub Total 1382 | 263 175 944 Wait 160 | . 155 5 Move 1094 | 198 20 876 Hop . | . . . Pick Up 21 | 15 . 6 Fast Attach 2 | . . 2 Attach 10 | 7 . 3 Detach . | . . . Swap 2 | . . 2 Drop 4 | . . 4 Fire 89 | 43 . 46 Melee . | . . . Ram . | . . . Kick . | . . . Crush . | . . . Escape Stasis . | . . . Rewire . | . . . Trap . | . . . Miscellaneous . | . . . Route ------- -11/Scrapyard -10/Materials -10/Subcaves (discovered 3 exits: [*Mat x2] / [*Rec]) History --------- Turn | Location | Event 3 | -11/Scrapyard | Discovered new exit (range 16) 443 | -11/Scrapyard | Entered Materials 444 | -10/Materials | Build established: Mutant 615 | -10/Materials | Discovered new exit (range 5) 630 | -10/Materials | Entered Subcaves 879 | -10/Subcaves | A swath of the cavern ceiling suddenly collapsed 909 | -10/Subcaves | Visited Clippyterm 914 | -10/Subcaves | Learned 40 Factory zone layouts 914 | -10/Subcaves | Learned location of Deep Caves (-7) 999 | -10/Subcaves | Discovered new exit (range 15) 1336 | -10/Subcaves | Learned location of Zion (-7) 1709 | -10/Subcaves | Core integrity fell below 50% 1833 | -10/Subcaves | Core integrity fell below 20% 1852 | -10/Subcaves | Discovered new exit (range 15) 1861 | -10/Subcaves | Shifting Twisted Machinery released Mak. Flight Unit 1869 | -10/Subcaves | Shifting Twisted Machinery released Battle Cannon 1915 | -10/Subcaves | Discovered new exit (range 10) 1951 | -10/Subcaves | Destroyed by A5-ANP(R) with Subdweller Machine Gun Last Messages --------------- 1J-6CP(R) destroyed. J3-EXN(R) destroyed. Sub. Shrapnel Launcher destroyed. Destroyed Sub. Shrapnel Launcher. Aluminum Leg destroyed. Destroyed Aluminum Leg. EXIT=FOUND Mak. Flight Unit falls loose from the Twisted Machinery. Battle Cannon falls loose from the Twisted Machinery. Acquired Battle Cannon. Acquired Mak. Flight Unit. EXIT=FOUND Lgt. Ion Engine destroyed. Mak. Flight Unit destroyed. 1D-ML7(R) knocked back. Lgt. Assault Rifle destroyed. 1D-ML7(R) knocked back. Aluminum Leg destroyed. Map ----- +----------------------------------------------------+ | #####?## #????# " "???????????????????? | | ##?###### ##### ??????????????????? | | ##???###" "# "" ???????????#???#"?? | | ???### " ?????????????#????? | | ##?# "??????????????????? | | ### <#??????????????????? | | ## & ??????????????????? | | #" && " ????????#??#??????? | | " & " ??????????????????? | | " #???????????????????? | | """" #""""""##???????????????????? | | "## ########???????????????????#? | | ########## ###??????????#???????????????? | | ##???#""#" & ## ##?#???#???????????????????? | | ????? """ "## ###?????#???????#?????????? | | ????# """ ### ####????#???????????????? | | ????# " " ## " #????????????????????? | | ????## ""### " "" #????????????????????? | | ?#???####?# """" ## ##???????#????????????? | | ??????#???#"""" " ### #?????????????????????? | | ??#?????#?# " ##?# #?#??#?#??????????????? | | ??#?##?#??######### ##?## #??#??????????????????? | | #?????#???????????###??# ##??#?????????????????? | | ?????#?????????????????## #????????????????????? | | ???????#?????????????#??# ##????????#??????????? | | ?????????????????#?????##@ #?#?????????????????? | | ????????????#?????#???## ##???????????????????? | | ??????????????????????# ##????????????????????? | | ?????????#????#????#??# ##?????#???????????????? | | ??????????????????????## R#### ##????????????????? | | ??????????????????#????#% "#??????????????? | | ???????????????????#???#R% < #?????????????? | | ???????????????#????#?? """"" " ???????????? | | ??????????#???????????? " """##??"????????????? | | ??????????????#???????###""""" ##????????????????? | | ????????????????????????########?????????????????? | | ???????????????????#??????????#????##????????????? | | ????????????????????#?????????#??????????????????? | | ????????????????????#???????#????????#???????????? | | ??????????????????????#??????????????????????????? | | ????????????????????????????#????????????????????? | | ?????????????????????????????????????????????????? | | ?????????????????????????????????????????????????? | | ?????????????????????????????????????????????????? | | ?????????????????????????????????????????????????? | | ?????????????????????????????????????????????????? | | ?????????????????????????????????????????????????? | | ?????????????????????????????????????????????????? | | ?????????????????????????????????????????????????? | | ?????????????????????????????????????????????????? | +----------------------------------------------------+ Best States ------------- Heat Dissipation 25 Energy Generation 10 Energy Capacity 125 Matter Stores 300 Matter Capacity 300 Sight Range 16 Terrain Scan Range 16 Terrain Scan Density 10 Evasion (%) 55 Recoil Reduction 2 Item Schematics ----------------- None Robot Schematics ------------------ None Fabricated ------------ Nothing Repaired ---------- Nothing Studied --------- None Alien Tech Used ----------------- None Achievements -------------- None Challenges ------------ None Game ------ Seed PhasingZioniteShredder Manual? 0 Play Time 00:18:21 Cumulative 18.9 hours Start 2025.11.27 @ 16:28:59 End 2025.11.27 @ 16:44:18 Sessions 1 Manual Loads 0 Difficulty Rogue Special Mode None Game No. 13 Rogue 3 Adventurer 2 Explorer 8 Win Type - Total 1 Types 1/0/0/0/0/0/0/0/0/0 Lore% 22 Gallery% 24 Achievement% 19 Wizard Run 0 Options --------- Layout 1 ASCII 0 Keyboard 0 Movement Mouse Keybinds 0 Fullscreen 1 Font 24/Smallcaps Map View 50x35 Zoom Use 0% Tactical HUD 0 Map Filters NONE Filters NONE Steam 1 RUN: cb427de2-7b4e-44a3-9a59-79e6a63f152d